bitfinex/quotes_BTCUSD_20260315
["timestamp","ask_amount","ask_price","bid_price","bid_amount"]
[1773538422344,0.06153386,70882.0,70874.0,0.07054747]
[1773538422697,0.06153386,70882.0,70878.0,0.0002]
[1773538424203,0.07054076,70881.0,70878.0,0.0002]
[1773538424367,0.13207462,70881.0,70878.0,0.0002]
[1773538424578,0.06153386,70880.0,70872.0,0.07074909]
[1773538427144,0.07054047,70882.0,70872.0,0.07074909]
[1773538428255,0.07204579,70884.0,70872.0,0.13136211]
[1773538428454,0.07204579,70884.0,70872.0,0.07074909]
[1773538428668,0.06153386,70883.0,70872.0,0.07214909]
[1773538428880,0.07053977,70882.0,70872.0,0.07214909]
[1773538429665,0.06153386,70881.0,70872.0,0.0002]
[1773538431269,0.07054176,70880.0,70872.0,0.0002]
[1773538432891,0.07054176,70880.0,70869.0,0.07055192]
[1773538433092,0.07054176,70880.0,70867.0,0.07215466]
[1773538433093,0.0550729,70879.0,70867.0,0.07215466]
[1773538433320,0.12561665,70878.0,70867.0,0.07215466]
[1773538433492,0.12561665,70878.0,70867.0,0.07075466]
[1773538433695,0.12561665,70878.0,70867.0,0.0002]
[1773538433696,0.07054375,70878.0,70867.0,0.0002]
[1773538433935,0.0550729,70877.0,70867.0,0.0002]
[1773538434291,0.0550729,70877.0,70864.0,0.0002]
[1773538434694,0.0550729,70877.0,70864.0,0.07075759]
[1773538435119,0.0014,70876.0,70864.0,0.07075759]
[1773538436034,0.07054673,70875.0,70864.0,0.07075759]
[1773538437579,0.0550729,70874.0,70864.0,0.0002]
[1773538437778,0.0550729,70874.0,70863.0,0.0002]
[1773538438192,0.0550729,70872.0,70863.0,0.0002]
[1773538438565,0.0550729,70872.0,70863.0,0.07075856]
[1773538439543,0.07054872,70873.0,70863.0,0.07075856]
[1773538440361,0.07054872,70874.0,70863.0,0.07075856]
[1773538440782,0.07054673,70875.0,70863.0,0.12605727]
[1773538440980,0.07054076,70883.0,70864.0,0.05529871]
[1773538441196,0.0014,70879.0,70866.0,0.05529871]
[1773538441356,0.0550729,70878.0,70860.0,0.07074852]
[1773538441545,0.0550729,70878.0,70860.0,0.07074801]
[1773538442527,0.0550729,70876.0,70860.0,0.0001869]
[1773538443828,0.0550729,70876.0,70860.0,0.0003869]
[1773538444419,0.0550729,70874.0,70861.0,0.07056067]
[1773538444618,0.0550729,70872.0,70861.0,0.07052067]
[1773538445708,0.0548579,70872.0,70861.0,0.07052067]
[1773538446770,0.07055071,70871.0,70861.0,0.07052067]
[1773538447168,0.07055071,70871.0,70860.0,0.0003869]
[1773538447345,0.07055071,70871.0,70860.0,0.07094779]
[1773538447346,0.12562361,70871.0,70860.0,0.07094779]
[1773538447672,0.0550729,70870.0,70860.0,0.07094779]
[1773538448349,0.0014,70870.0,70860.0,0.07094779]
[1773538448702,0.0705527,70869.0,70860.0,0.07094779]
[1773538450137,0.0705527,70869.0,70860.0,0.0003869]
[1773538450494,0.0550729,70868.0,70853.0,0.00035275]
[1773538450874,0.0550729,70866.0,70853.0,0.00035275]
[1773538451305,0.0550729,70866.0,70853.0,0.0709213]
[1773538452029,0.0550729,70866.0,70852.0,0.07076914]
[1773538452540,0.0564729,70865.0,70852.0,0.07076914]
[1773538453173,0.0550729,70863.0,70860.0,0.0002]
[1773538455375,0.07055967,70862.0,70860.0,0.0002]
[1773538455653,0.12563257,70862.0,70860.0,0.0002]
[1773538456309,0.0014,70870.0,70860.0,0.0707608]
[1773538456690,0.00150767,70870.0,70860.0,0.12605951]
[1773538456876,0.00010767,70870.0,70860.0,0.0707608]
[1773538457027,0.00010767,70870.0,70861.0,0.05529871]
[1773538457419,0.00010767,70870.0,70862.0,0.07055967]
[1773538457628,0.00010767,70870.0,70861.0,0.07055967]
[1773538460679,0.00010767,70870.0,70861.0,0.12585838]
[1773538460888,0.07076602,70876.0,70862.0,0.05529871]
[1773538461108,0.07076602,70876.0,70862.0,0.05565787]
[1773538461523,0.0014,70875.0,70862.0,0.05565787]
[1773538461743,0.07194732,70875.0,70863.0,0.07055868]
[1773538462802,0.00022001,70884.0,70864.0,0.07038814]
[1773538463002,0.07053928,70883.0,70871.0,0.05746429]
[1773538463587,0.07193405,70888.0,70871.0,0.05746429]
[1773538463989,0.07053405,70888.0,70873.0,0.05746429]
[1773538465568,0.0708864,70889.0,70873.0,0.05746429]
[1773538465966,0.00022001,70890.0,70874.0,0.07054773]
[1773538466175,0.07074555,70897.0,70880.0,0.05746429]
[1773538466401,0.07074555,70897.0,70881.0,0.0014]
[1773538466803,0.07074555,70897.0,70881.0,0.05886429]
[1773538468087,0.07074555,70897.0,70882.0,0.12800406]
[1773538468246,0.07074555,70897.0,70883.0,0.05746429]
[1773538468451,0.00022001,70897.0,70883.0,0.05746429]
[1773538468879,0.07070024,70898.0,70883.0,0.05746429]
[1773538469118,0.00022001,70896.0,70882.0,0.07053977]
[1773538469282,0.00022001,70896.0,70884.0,0.0014]
[1773538470337,0.07052683,70895.0,70885.0,0.07053678]
[1773538475925,0.05470553,70894.0,70885.0,0.07053678]
[1773538476563,0.07052882,70893.0,70882.0,0.0014]
[1773538476912,0.07052882,70893.0,70881.0,0.07053982]
[1773538477118,0.07052882,70893.0,70882.0,0.0014]
[1773538477830,0.12523386,70894.0,70882.0,0.0014]
[1773538478734,0.12523386,70894.0,70883.0,0.07053877]
[1773538479133,0.07192833,70894.0,70882.0,0.07193877]
[1773538479332,0.05470553,70893.0,70882.0,0.07193877]
[1773538479734,0.05470553,70893.0,70875.0,0.07054673]
[1773538481480,0.07052982,70892.0,70875.0,0.07054673]
[1773538481825,0.05470553,70891.0,70875.0,0.07054673]
[1773538482527,0.05470553,70891.0,70876.0,0.0014]
[1773538484577,0.12523733,70890.0,70877.0,0.07054474]
[1773538486533,0.12523733,70890.0,70877.0,0.07019199]
[1773538486733,0.12523733,70890.0,70877.0,0.07004325]
[1773538488118,0.05470553,70889.0,70877.0,0.07004325]
[1773538488966,0.07053379,70888.0,70877.0,0.07004325]
[1773538489141,0.12523932,70888.0,70877.0,0.07004325]
[1773538494584,0.12523932,70888.0,70877.0,0.07024325]
[1773538494928,0.12523932,70888.0,70877.0,0.07164325]
[1773538495129,0.12523932,70888.0,70877.0,0.07024325]
[1773538495354,0.07193379,70888.0,70877.0,0.07024325]
[1773538495552,0.05320835,70887.0,70877.0,0.07024325]
[1773538496316,0.36245475,70919.0,70877.0,0.07024325]
[1773538496540,0.07073905,70903.0,70878.0,0.801401]
[1773538496744,0.00022001,70903.0,70891.0,0.05859417]
[1773538496917,0.07051503,70907.0,70893.0,0.05859417]
[1773538497116,0.07108867,70906.0,70893.0,0.05859417]
[1773538497327,0.00057258,70906.0,70893.0,0.05844544]
[1773538498844,0.00057258,70906.0,70895.0,0.05859417]
[1773538500662,0.00057258,70906.0,70895.0,0.05844543]
[1773538500962,0.00057258,70906.0,70896.0,0.12912001]
[1773538501753,0.00022001,70908.0,70897.0,0.05859417]
[1773538502578,0.00022001,70908.0,70898.0,0.0014]
[1773538502786,0.00022001,70908.0,70898.0,0.05999417]
[1773538503292,0.00022001,70908.0,70899.0,0.07052285]
[1773538504296,0.00022001,70906.0,70899.0,0.07052285]
[1773538506198,0.05320835,70904.0,70891.0,0.07052982]
[1773538506632,0.05320835,70904.0,70892.0,0.0014]
[1773538507056,0.05320835,70904.0,70891.0,0.07052982]
[1773538507265,0.05320835,70904.0,70891.0,0.07192982]
[1773538507841,0.05320835,70904.0,70889.0,0.07192982]
[1773538508166,0.05320835,70904.0,70889.0,0.07052982]
[1773538508346,0.05320835,70902.0,70889.0,0.07052982]
[1773538509512,0.05305835,70902.0,70889.0,0.07052982]
[1773538510367,0.12372921,70901.0,70888.0,0.07053368]
[1773538510563,0.12372921,70901.0,70888.0,0.07064151]
[1773538510915,0.05320835,70901.0,70888.0,0.07064151]
[1773538511117,0.05226835,70901.0,70888.0,0.07064151]
[1773538512085,0.05226835,70901.0,70888.0,0.0704928]
[1773538512548,0.04925835,70901.0,70888.0,0.0704928]
[1773538512758,0.04925835,70901.0,70888.0,0.0706928]
[1773538513952,0.04884835,70901.0,70888.0,0.0706928]
[1773538515810,0.04793835,70901.0,70888.0,0.0706928]
[1773538516162,0.04793835,70901.0,70888.0,0.07054409]
[1773538516644,0.07051887,70903.0,70888.0,0.07054409]
[1773538516842,0.07051887,70903.0,70888.0,0.12913826]
[1773538517966,0.07191688,70905.0,70889.0,0.05859417]
[1773538518168,0.07073689,70906.0,70891.0,0.06956396]
[1773538518521,0.07050921,70913.0,70893.0,0.05859417]
[1773538518722,0.0014,70911.0,70893.0,0.05859417]
[1773538518977,0.05460835,70912.0,70893.0,0.05859417]
[1773538519370,0.05320835,70912.0,70893.0,0.05859417]
[1773538519689,0.05263835,70912.0,70893.0,0.05859417]
[1773538520272,0.07051092,70911.0,70894.0,0.07052783]
[1773538520616,0.07051092,70911.0,70895.0,0.05859417]
[1773538520757,0.07030092,70911.0,70895.0,0.05844547]
[1773538521458,0.07030092,70911.0,70895.0,0.05829676]
[1773538522349,0.07017092,70911.0,70896.0,0.07052584]
[1773538523495,0.07009092,70911.0,70896.0,0.07052584]
[1773538524502,0.07004092,70911.0,70896.0,0.07052584]
[1773538526479,0.06990092,70911.0,70896.0,0.07052584]
[1773538527220,0.12476881,70912.0,70896.0,0.07052584]
[1773538527744,0.12336881,70912.0,70896.0,0.07052584]
[1773538529031,0.1233683,70912.0,70896.0,0.07052584]
[1773538530227,0.1231183,70912.0,70896.0,0.07052584]
[1773538530858,0.0014,70923.0,70901.0,0.877685]
[1773538531059,0.07230081,70924.0,70910.0,0.05967113]
[1773538531219,0.07230081,70924.0,70911.0,0.0014]
[1773538531220,0.07223081,70924.0,70911.0,0.0014]
[1773538531588,0.00033248,70924.0,70911.0,0.0014]
[1773538531787,0.01274193,70925.0,70912.0,0.05418931]
[1773538532015,0.01124,70928.0,70912.0,0.05418931]
[1773538532236,0.00031633,70927.0,70912.0,0.05418931]
[1773538532601,0.0002128,70932.0,70912.0,0.05418931]
[1773538532754,0.0002128,70932.0,70918.0,0.07050396]
[1773538532966,0.0002128,70932.0,70919.0,0.0014]
[1773538533556,0.12575548,70935.0,70919.0,0.0014]
[1773538534296,0.12568548,70935.0,70919.0,0.0014]
[1773538534706,0.12568548,70935.0,70920.0,0.05967113]
[1773538534903,0.00022001,70932.0,70921.0,0.07050097]
[1773538535730,0.05547551,70931.0,70918.0,0.07050396]
[1773538536102,0.05547551,70929.0,70918.0,0.07050396]
[1773538536230,0.00022001,70932.0,70918.0,0.07050396]
[1773538536436,0.0014,70931.0,70918.0,0.07050396]
[1773538536867,0.07049203,70930.0,70917.0,0.07050426]
[1773538537671,0.07049203,70930.0,70920.0,0.05967113]
[1773538537992,0.07049203,70930.0,70917.0,0.07050426]
[1773538539547,0.05547551,70929.0,70917.0,0.0014]
[1773538539761,0.07071011,70932.0,70919.0,0.05967113]
[1773538539962,0.0014,70931.0,70915.0,0.12609526]
[1773538540157,0.0014,70930.0,70915.0,0.12609526]
[1773538540557,0.07071054,70932.0,70915.0,0.12609526]
[1773538540765,0.0014,70931.0,70915.0,0.12609526]
[1773538541399,0.0014,70931.0,70915.0,0.07190595]
[1773538541594,0.07049203,70930.0,70915.0,0.07190595]
[1773538542045,0.07071204,70930.0,70915.0,0.07190595]
[1773538542257,0.05547551,70929.0,70915.0,0.07190595]
[1773538542452,0.05538551,70929.0,70915.0,0.07190595]
[1773538543784,0.0704936,70929.0,70915.0,0.07190595]
[1773538543937,0.12596911,70929.0,70915.0,0.07190595]
[1773538544137,0.05547551,70928.0,70915.0,0.07190595]
[1773538544811,0.05540551,70928.0,70893.0,0.26483673]
[1773538544999,0.0235723,70919.0,70899.0,0.07052285]
[1773538545206,0.05687551,70918.0,70899.0,0.07052285]
[1773538545610,0.07050495,70917.0,70898.0,0.07052285]
[1773538545787,0.05547551,70916.0,70900.0,0.0014]
[1773538546462,0.05547551,70916.0,70897.0,0.07052285]
[1773538546662,0.05542551,70916.0,70897.0,0.07192285]
[1773538548755,0.07050694,70915.0,70897.0,0.07192285]
[1773538548931,0.05547551,70914.0,70897.0,0.07192285]
[1773538549284,0.05547551,70914.0,70907.0,0.0002]
[1773538549522,0.05547551,70914.0,70897.0,0.07192285]
[1773538549850,0.05547551,70914.0,70900.0,0.0002]
[1773538550665,0.05547551,70914.0,70896.0,0.0002149]
[1773538550870,0.05253592,70912.0,70896.0,0.0002149]
[1773538551440,0.0014,70911.0,70896.0,0.0002149]
[1773538551636,0.05742801,70910.0,70892.0,0.0915721]
[1773538552685,0.05742801,70909.0,70892.0,0.0915721]
[1773538553316,0.0705139,70908.0,70892.0,0.0915721]
[1773538553520,0.05742801,70907.0,70892.0,0.0915721]
[1773538554492,0.05742801,70907.0,70892.0,0.07085685]
[1773538555669,0.07051589,70906.0,70892.0,0.07085685]
[1773538556240,0.07051589,70906.0,70892.0,0.07105685]
[1773538556564,0.07051589,70906.0,70892.0,0.07072972]
[1773538557118,0.0705139,70908.0,70892.0,0.07072972]
[1773538557325,0.07050998,70912.0,70893.0,0.05477045]
[1773538557695,0.07061778,70912.0,70900.0,0.05967113]
[1773538557820,0.00010773,70912.0,70901.0,0.07052086]
[1773538558647,0.07050667,70916.0,70902.0,0.05477045]
[1773538558848,0.07050667,70916.0,70902.0,0.05487818]
[1773538559501,0.07050595,70918.0,70902.0,0.05487818]
[1773538559901,0.0014,70921.0,70904.0,0.05477045]
[1773538560406,0.0014,70921.0,70903.0,0.07051887]
[1773538560407,0.05742801,70920.0,70903.0,0.07051887]
[1773538561123,0.05882801,70920.0,70903.0,0.07051887]
[1773538561917,0.05742801,70918.0,70902.0,0.0706266]
[1773538562178,0.05742801,70918.0,70899.0,0.07052086]
[1773538562356,0.05742801,70916.0,70899.0,0.07052246]
[1773538562855,0.00010777,70918.0,70899.0,0.12529291]
[1773538563031,0.00010777,70918.0,70900.0,0.0014]
[1773538563228,0.05775579,70918.0,70900.0,0.0014]
[1773538564137,0.05742801,70916.0,70901.0,0.07052086]
[1773538566979,0.07050694,70915.0,70901.0,0.07052086]
[1773538567186,0.12933495,70915.0,70901.0,0.07052086]
[1773538568422,0.07050608,70916.0,70901.0,0.07052086]
[1773538569798,0.07046608,70916.0,70901.0,0.07052086]
[1773538572411,0.07068609,70916.0,70901.0,0.07052086]
[1773538574309,0.05742801,70915.0,70901.0,0.07052086]
[1773538574914,0.05742801,70915.0,70902.0,0.0014]
[1773538575322,0.07050793,70914.0,70903.0,0.07051887]
[1773538575525,0.07050793,70914.0,70903.0,0.07191887]
[1773538575915,0.07050793,70914.0,70903.0,0.07051887]
[1773538576339,0.07050735,70915.0,70903.0,0.07051887]
[1773538577922,0.12793536,70915.0,70903.0,0.07051887]
[1773538578676,0.07050735,70915.0,70903.0,0.07051887]
[1773538578875,0.05742801,70914.0,70903.0,0.07051887]
[1773538579022,0.00022001,70916.0,70903.0,0.07051887]
[1773538579228,0.00022001,70916.0,70903.0,0.07191887]
[1773538580230,0.05742801,70914.0,70903.0,0.07191887]
[1773538580527,0.05742801,70914.0,70903.0,0.07051887]
[1773538580736,0.05742801,70914.0,70901.0,0.0014]
[1773538581149,0.05742801,70914.0,70900.0,0.0002]
[1773538581350,0.05742801,70914.0,70901.0,0.0014]
[1773538581549,0.05742801,70914.0,70900.0,0.0016]
[1773538581980,0.05742801,70914.0,70900.0,0.0002]
[1773538582192,0.05115196,70912.0,70900.0,0.0002]
[1773538584723,0.05115196,70910.0,70900.0,0.0002]
[1773538585472,0.05083198,70910.0,70900.0,0.0002]
[1773538586916,0.05115196,70908.0,70900.0,0.0002]
[1773538587553,0.05115196,70908.0,70899.0,0.0705227]
[1773538587908,0.05115196,70908.0,70898.0,0.07052361]
[1773538588442,0.07051291,70909.0,70898.0,0.07052361]
[1773538588974,0.07051291,70909.0,70900.0,0.0002]
[1773538590303,0.05115196,70908.0,70900.0,0.0002]
[1773538594273,0.07051489,70907.0,70900.0,0.0002]
[1773538595851,0.07051489,70907.0,70900.0,0.0002929]
[1773538596421,0.12166685,70907.0,70900.0,0.0002929]
[1773538596620,0.07051489,70907.0,70900.0,0.0002929]
[1773538597158,0.07051392,70908.0,70900.0,0.07081451]
[1773538600444,0.07051392,70908.0,70897.0,0.0002]
[1773538600655,0.05115196,70907.0,70897.0,0.0002]
[1773538603029,0.12166785,70906.0,70897.0,0.0002]
[1773538610324,0.04989607,70905.0,70897.0,0.0002]
[1773538611003,0.07051788,70904.0,70897.0,0.0002]
[1773538612571,0.12428016,70904.0,70897.0,0.0002]
[1773538613912,0.07051788,70904.0,70897.0,0.0002]
[1773538614747,0.07051589,70907.0,70897.0,0.07072385]
[1773538614947,0.07050881,70914.0,70900.0,0.05965031]
[1773538615147,0.16578608,70921.0,70900.0,0.05965031]
[1773538615148,0.07049998,70922.0,70903.0,0.05368252]
[1773538615347,0.07057089,70922.0,70903.0,0.05368252]
[1773538616202,0.07057089,70922.0,70910.0,0.05965031]
[1773538616408,0.07057089,70922.0,70910.0,0.0014]
[1773538617483,0.07057089,70922.0,70910.0,0.07191155]
[1773538617484,0.00022001,70916.0,70910.0,0.07191155]
[1773538617886,0.00022001,70916.0,70910.0,0.0014]
[1773538619307,0.0707264,70916.0,70910.0,0.0014]
[1773538620284,0.00022001,70916.0,70910.0,0.07191161]
[1773538620477,0.07072638,70916.0,70910.0,0.0014]
[1773538630674,0.07072638,70916.0,70910.0,0.0016]
[1773538634153,7.091e-05,70922.0,70910.0,0.0016]
[1773538634154,7.091e-05,70922.0,70911.0,0.07051092]
[1773538634383,0.07057127,70922.0,70911.0,0.07051092]
[1773538636668,0.07057127,70922.0,70911.0,0.07036223]
[1773538636868,0.07057127,70922.0,70911.0,0.07021355]
[1773538638198,0.07079128,70922.0,70911.0,0.07021355]
[1773538639172,0.00022001,70923.0,70912.0,0.05368252]
[1773538639375,0.07071923,70923.0,70912.0,0.05375343]
[1773538639573,0.05376228,70922.0,70912.0,7.091e-05]
[1773538640432,0.05376228,70922.0,70912.0,0.00147091]
[1773538640825,0.05376228,70922.0,70910.0,0.0002]
[1773538641026,0.05376228,70920.0,70911.0,0.001]
[1773538641594,0.05376228,70920.0,70910.0,0.0708195]
[1773538641753,0.05376228,70920.0,70910.0,0.0722195]
[1773538641956,0.05376228,70920.0,70910.0,0.0708195]
[1773538642701,0.05376228,70920.0,70910.0,0.07067081]
[1773538643273,0.07050227,70920.0,70910.0,0.07067081]
[1773538643474,0.07050097,70921.0,70910.0,0.07067081]
[1773538644080,0.07050018,70922.0,70910.0,0.07052213]
[1773538644402,0.07050018,70922.0,70910.0,0.18274453]
[1773538645000,0.07050018,70922.0,70911.0,0.05258228]
[1773538645561,0.07050018,70922.0,70912.0,0.07050992]
[1773538645762,0.07072019,70922.0,70912.0,0.07050992]
[1773538646002,0.00022001,70922.0,70912.0,0.07050992]
[1773538648941,0.07072021,70922.0,70911.0,0.07050992]
[1773538649075,0.05272144,70921.0,70911.0,0.07050992]
[1773538651409,0.05272144,70919.0,70910.0,0.0707222]
[1773538652400,0.05272144,70919.0,70911.0,0.0002]
[1773538652950,0.05272144,70919.0,70903.0,0.07071688]
[1773538653114,0.05272144,70918.0,70906.0,0.0014]
[1773538653535,0.05272144,70916.0,70906.0,0.0014]
[1773538653850,0.05272144,70916.0,70903.0,0.0002]
[1773538654052,0.05272144,70916.0,70903.0,0.07071869]
[1773538654612,0.05272144,70914.0,70903.0,0.07071869]
[1773538655168,0.05272144,70914.0,70902.0,0.0002]
[1773538655315,0.05272144,70914.0,70897.0,0.0002]
[1773538655502,0.05272144,70912.0,70897.0,0.07072476]
[1773538655705,0.05964012,70910.0,70896.0,0.0002]
[1773538655907,0.05272144,70909.0,70896.0,0.0002]
[1773538656160,0.05272144,70907.0,70896.0,0.0002]
[1773538657963,0.05272144,70905.0,70896.0,0.0002]
[1773538660210,0.05272144,70903.0,70896.0,0.0002]
[1773538662379,0.07051987,70902.0,70896.0,0.0002]
[1773538667617,0.05272144,70901.0,70892.0,0.0002]
[1773538669752,0.07052186,70900.0,70892.0,0.0002]
[1773538669935,0.12042546,70900.0,70892.0,0.0002]
[1773538670145,0.0499036,70899.0,70892.0,0.0002]
[1773538671938,0.07052385,70898.0,70892.0,0.0002]
[1773538675328,0.04712668,70898.0,70890.0,0.07073162]
[1773538676090,0.04712668,70898.0,70890.0,0.0002]
[1773538677358,0.07052484,70897.0,70890.0,0.0002]
[1773538677503,0.07052484,70897.0,70890.0,0.07073167]
[1773538679527,0.07052186,70900.0,70890.0,0.07073167]
[1773538679774,0.07191788,70904.0,70891.0,0.04691184]
[1773538680562,0.07051788,70904.0,70891.0,0.04691184]
[1773538681895,0.07051788,70906.0,70891.0,0.04691184]
[1773538682102,0.0014,70905.0,70892.0,0.07052982]
[1773538684366,0.07051788,70904.0,70892.0,0.07052982]
[1773538685178,0.07051788,70904.0,70891.0,0.07053021]
[1773538685600,0.07051788,70904.0,70892.0,0.0002]
[1773538688515,0.07213789,70905.0,70893.0,0.07052882]
[1773538688728,0.04909007,70906.0,70894.0,0.04831184]
[1773538689101,0.07051589,70907.0,70894.0,0.04831184]
[1773538689308,0.07047589,70907.0,70894.0,0.04827184]
[1773538690482,0.07051305,70909.0,70895.0,0.07052683]
[1773538691092,0.07055357,70909.0,70895.0,0.07052683]
[1773538692232,0.04712668,70908.0,70895.0,0.07052683]
[1773538692418,0.07051489,70907.0,70895.0,0.07052683]
[1773538696512,0.04712668,70906.0,70895.0,0.07052683]
[1773538698644,0.07051688,70905.0,70895.0,0.07052683]
[1773538699053,0.07051688,70906.0,70895.0,0.07052683]
[1773538699262,0.07051489,70907.0,70895.0,0.07052683]
[1773538700395,0.0707349,70907.0,70895.0,0.07052683]
[1773538703470,0.00022001,70907.0,70895.0,0.12131418]
[1773538703874,0.07073497,70907.0,70895.0,0.12131418]
[1773538704382,0.07073497,70907.0,70895.0,0.07052683]
[1773538710089,0.07051012,70912.0,70895.0,0.07052683]
[1773538710246,0.07191012,70912.0,70896.0,0.05078735]
[1773538711247,0.07191012,70912.0,70897.0,0.07052484]
[1773538711453,0.07051012,70912.0,70897.0,0.07052484]
[1773538712100,0.07191012,70912.0,70897.0,0.07052484]
[1773538713291,0.07051012,70912.0,70897.0,0.07052484]
[1773538714904,0.07073013,70912.0,70897.0,0.07052484]
[1773538716748,0.07213013,70912.0,70897.0,0.07052484]
[1773538717575,0.04808688,70911.0,70897.0,0.07052484]
[1773538718713,0.04808688,70909.0,70897.0,0.07052484]
[1773538723192,0.0705139,70908.0,70897.0,0.07052484]
[1773538723495,0.11860078,70908.0,70897.0,0.07052484]
[1773538724178,0.04808688,70907.0,70895.0,0.07076735]
[1773538724964,0.04808688,70907.0,70895.0,0.07216735]
[1773538725388,0.07051589,70906.0,70895.0,0.07216735]
[1773538725587,0.04808688,70905.0,70895.0,0.07216735]
[1773538725790,0.04808688,70905.0,70895.0,0.07076735]
[1773538725991,0.04808688,70905.0,70895.0,0.07216735]
[1773538726566,0.04808688,70905.0,70895.0,0.07076735]
[1773538726766,0.04808688,70905.0,70895.0,0.07216735]
[1773538727168,0.07051788,70904.0,70895.0,0.07216735]
[1773538728622,0.07051788,70904.0,70895.0,0.07076735]
[1773538728917,0.07051788,70904.0,70895.0,0.07216735]
[1773538729121,0.07051788,70904.0,70895.0,0.07076735]
[1773538729296,0.07051788,70904.0,70895.0,0.07216735]
[1773538729633,0.07051788,70904.0,70895.0,0.07076735]
[1773538729920,0.07051788,70904.0,70895.0,0.07216735]
[1773538730105,0.07051788,70904.0,70895.0,0.07076735]
[1773538730302,0.07051788,70904.0,70895.0,0.07216735]
[1773538730912,0.07051788,70904.0,70896.0,0.0014]
[1773538732344,0.07051788,70904.0,70895.0,0.07076735]
[1773538732549,0.07051788,70904.0,70896.0,0.0014]
[1773538734337,0.07051788,70904.0,70897.0,0.07052484]
[1773538736661,0.0705139,70908.0,70897.0,0.07052484]
[1773538737255,0.1164394,70908.0,70897.0,0.07052484]
[1773538737454,0.0459255,70907.0,70897.0,0.07052484]
[1773538739558,0.07051589,70906.0,70896.0,0.0016]
[1773538739756,0.0459255,70905.0,70896.0,0.0016]
[1773538740529,0.0459255,70905.0,70896.0,0.0721257]
[1773538741097,0.07051589,70906.0,70896.0,0.0707257]
[1773538741299,0.07051589,70906.0,70896.0,0.0721257]
[1773538742371,0.07051589,70907.0,70896.0,0.0721257]
[1773538752925,0.11644139,70907.0,70896.0,0.0721257]
[1773538754731,0.11644139,70907.0,70896.0,0.0707257]
[1773538754930,0.11644139,70907.0,70897.0,0.0014]
[1773538757256,0.07051589,70907.0,70898.0,0.07052385]
[1773538757461,0.0705139,70908.0,70898.0,0.07052385]
[1773538757611,0.0705139,70908.0,70899.0,0.05033652]
[1773538760867,0.0705139,70908.0,70899.0,0.07052192]
[1773538761033,0.0705139,70908.0,70900.0,0.05033652]
[1773538764459,0.0705139,70908.0,70900.0,0.12085812]
[1773538767088,0.07073391,70909.0,70900.0,0.12085812]
[1773538767508,0.00034761,70913.0,70901.0,0.04748032]
[1773538767726,0.07085656,70913.0,70901.0,0.04748032]
[1773538768372,0.07072994,70912.0,70898.0,0.07052385]
[1773538768546,0.04708315,70911.0,70897.0,0.07052423]
[1773538768750,0.04708315,70911.0,70897.0,0.07192423]
[1773538768907,0.07051191,70910.0,70897.0,0.07192423]
[1773538769103,0.07051191,70910.0,70897.0,0.07052423]
[1773538769449,0.07051191,70910.0,70897.0,0.07192423]
[1773538769656,0.07191191,70910.0,70897.0,0.07192423]
[1773538770109,0.07191191,70910.0,70905.0,0.0001291]
[1773538770309,0.00022001,70909.0,70905.0,0.0001291]
[1773538771140,0.0705139,70908.0,70905.0,0.0001291]
[1773538772796,0.07073391,70909.0,70905.0,0.0001291]
[1773538775387,0.07073391,70909.0,70900.0,0.07052186]
[1773538775830,0.07073391,70909.0,70900.0,0.11800218]
[1773538777231,0.00022001,70912.0,70900.0,0.07052186]
[1773538777405,0.00022001,70912.0,70901.0,0.04748032]
[1773538777784,0.00022001,70912.0,70902.0,0.07051987]
[1773538777785,0.07073005,70912.0,70902.0,0.07051987]
[1773538780014,0.07073005,70912.0,70905.0,0.0001291]
[1773538782161,0.07213005,70912.0,70905.0,0.0001291]
[1773538783883,0.07213005,70912.0,70905.0,0.0003291]
[1773538785480,0.0719516,70912.0,70905.0,0.0003291]
[1773538786434,0.0719516,70912.0,70905.0,0.00017464]
[1773538786725,0.0719516,70912.0,70905.0,9.741e-05]
[1773538790592,0.0705516,70912.0,70905.0,9.741e-05]
[1773538791611,0.07050992,70914.0,70905.0,9.741e-05]
[1773538791967,0.07050992,70913.0,70905.0,9.741e-05]
[1773538792189,0.07190992,70914.0,70905.0,9.741e-05]
[1773538792385,0.07050123,70921.0,70906.0,0.04511909]
[1773538792386,0.07050104,70921.0,70906.0,0.04511909]
[1773538792585,0.00022001,70923.0,70910.0,0.05966086]
[1773538792586,0.07071923,70923.0,70910.0,0.05966086]
[1773538792750,0.07071923,70923.0,70911.0,0.04511909]
[1773538793176,0.07072003,70922.0,70911.0,0.04511909]
[1773538794006,0.00022001,70922.0,70911.0,0.04511909]
[1773538794621,0.07072009,70922.0,70912.0,0.07050992]
[1773538794805,0.00022001,70922.0,70913.0,0.0014]
[1773538795590,0.00022001,70922.0,70913.0,0.04651909]
[1773538795793,0.07072015,70922.0,70913.0,0.04651909]
[1773538796898,0.07072015,70922.0,70914.0,0.07050793]
[1773538797291,0.00022001,70922.0,70914.0,0.07050793]
[1773538797926,0.07072027,70922.0,70914.0,0.07050793]
[1773538800247,0.00022001,70922.0,70914.0,0.11562702]
[1773538801736,1e-08,70923.0,70914.0,0.07050793]
[1773538801937,0.07047732,70945.0,70914.0,0.07050793]
[1773538801938,0.0014,70937.0,70917.0,0.04511909]
[1773538802130,0.07048516,70937.0,70921.0,0.04511909]
[1773538802332,0.07188437,70938.0,70923.0,0.04511909]
[1773538802745,0.07048617,70936.0,70923.0,0.04511909]
[1773538803128,0.00020362,70934.0,70923.0,0.04511909]
[1773538803583,0.07048617,70936.0,70923.0,0.04511909]
[1773538803584,0.05866421,70936.0,70923.0,0.04511909]
[1773538803729,0.05866421,70936.0,70923.0,0.04519511]
[1773538804377,0.07048408,70938.0,70925.0,0.04511909]
[1773538804724,0.00022001,70930.0,70925.0,0.04511909]
[1773538805865,0.00065511,70930.0,70925.0,0.04511909]
[1773538806247,0.00065511,70930.0,70926.0,0.070496]
[1773538806454,0.00065511,70930.0,70927.0,0.04511909]
[1773538808528,0.07087061,70937.0,70928.0,0.07049402]
[1773538809381,0.07087061,70937.0,70928.0,0.11561311]
[1773538810602,0.05529363,70947.0,70929.0,0.04511909]
[1773538811230,0.00022001,70937.0,70929.0,0.04511909]
[1773538811725,0.00022001,70945.0,70929.0,0.04511909]
[1773538813423,0.07047812,70944.0,70931.0,0.04504187]
[1773538815930,0.07047812,70944.0,70933.0,0.04511909]
[1773538816130,0.07047812,70944.0,70935.0,0.04511909]
[1773538816334,0.07047812,70944.0,70935.0,0.04504187]
[1773538817304,0.00022001,70945.0,70935.0,0.04504187]
[1773538817648,0.07069736,70945.0,70935.0,0.04504187]
[1773538818086,0.07069736,70945.0,70937.0,0.04511909]
[1773538820248,0.07069736,70945.0,70937.0,0.11560326]
[1773538823243,0.00022001,70945.0,70938.0,0.0463823]
[1773538823554,0.07069728,70945.0,70938.0,0.0463823]
[1773538824606,0.07069728,70945.0,70938.0,0.11686637]
[1773538829591,0.00022001,70945.0,70938.0,0.11686637]
[1773538830822,0.0001651,70947.0,70939.0,0.0463823]
[1773538831002,0.00022001,70952.0,70939.0,0.0463823]